[Event "Titled Tuesday Blitz May 30 Early 2023"]
[White "Kovalevsky, Stanislav"]
[Black "Degenbaev, Aziz"]
[WhiteFideId "13508598"]
[BlackFideId "13802640"]
[WhiteElo "2174"]
[BlackElo "2152"]
[Result "0-1"]
[Round "11"]
[TimeControl "180+2"]
[Date "2023.05.30"]
[WhiteClock "0:00:05"]
[BlackClock "0:00:10"]

1. c4 {[%clk 0:03:00]}  Nf6 {[%clk 0:02:59]} 2. Nc3 {[%clk 0:03:00]}  g6 {[%clk 0:03:00]} 3. g3 {[%clk 0:03:01]}  Bg7 {[%clk 0:02:59]} 4. Bg2 {[%clk 0:03:01]}  c5 {[%clk 0:02:59]} 5. a3 {[%clk 0:03:00]}  Nc6 {[%clk 0:02:57]} 6. Rb1 {[%clk 0:03:01]}  O-O {[%clk 0:02:57]} 7. b4 {[%clk 0:03:01]}  cxb4 {[%clk 0:02:57]} 8. axb4 {[%clk 0:03:02]}  a6 {[%clk 0:02:58]} 9. Nf3 {[%clk 0:03:01]}  Rb8 {[%clk 0:02:58]} 10. b5 {[%clk 0:03:00]}  axb5 {[%clk 0:02:57]} 11. Nxb5 {[%clk 0:03:01]}  d5 {[%clk 0:02:53]} 12. cxd5 {[%clk 0:03:00]}  Nxd5 {[%clk 0:02:52]} 13. O-O {[%clk 0:02:59]}  Bg4 {[%clk 0:02:42]} 14. h3 {[%clk 0:02:58]}  Bd7 {[%clk 0:02:31]} 15. d4 {[%clk 0:02:52]}  Ncb4 {[%clk 0:02:26]} 16. Bd2 {[%clk 0:02:34]}  Bxb5 {[%clk 0:02:26]} 17. Bxb4 {[%clk 0:02:34]}  Nxb4 {[%clk 0:02:26]} 18. Rxb4 {[%clk 0:02:35]}  Bc6 {[%clk 0:02:24]} 19. Qb3 {[%clk 0:02:27]}  Qd6 {[%clk 0:02:15]} 20. e3 {[%clk 0:02:21]}  b5 {[%clk 0:02:12]} 21. Nd2 {[%clk 0:02:13]}  Bxg2 {[%clk 0:02:10]} 22. Kxg2 {[%clk 0:02:14]}  e6 {[%clk 0:02:04]} 23. Kg1 {[%clk 0:02:10]}  Qc6 {[%clk 0:01:56]} 24. Rb1 {[%clk 0:02:09]}  e5 {[%clk 0:01:48]} 25. d5 {[%clk 0:02:05]}  Qc5 {[%clk 0:01:40]} 26. Rxb5 {[%clk 0:02:03]}  Rxb5 {[%clk 0:01:39]} 27. Qxb5 {[%clk 0:02:04]}  Qc2 {[%clk 0:01:40]} 28. Qb2 {[%clk 0:01:57]}  Qd3 {[%clk 0:01:38]} 29. e4 {[%clk 0:01:45]}  Bh6 {[%clk 0:01:38]} 30. Rd1 {[%clk 0:01:22]}  Rc8 {[%clk 0:01:32]} 31. Qb1 {[%clk 0:01:10]}  Rc2 {[%clk 0:01:16]} 32. Nf1 {[%clk 0:00:59]}  Qe2 {[%clk 0:01:12]} 33. Qb8+ {[%clk 0:00:18]}  Bf8 {[%clk 0:01:10]} 34. Rd2 {[%clk 0:00:19]}  Rxd2 {[%clk 0:01:09]} 35. Nxd2 {[%clk 0:00:20]}  Qxd2 {[%clk 0:01:09]} 36. Qxe5 {[%clk 0:00:20]}  h5 {[%clk 0:01:00]} 37. Kg2 {[%clk 0:00:19]}  Bc5 {[%clk 0:00:59]} 38. Qb8+ {[%clk 0:00:18]}  Kh7 {[%clk 0:00:59]} 39. Qf4 {[%clk 0:00:18]}  Qxf4 {[%clk 0:00:52]} 40. gxf4 {[%clk 0:00:19]}  Kg7 {[%clk 0:00:50]} 41. e5 {[%clk 0:00:19]}  Kf8 {[%clk 0:00:48]} 42. Kf3 {[%clk 0:00:20]}  Ke7 {[%clk 0:00:48]} 43. Ke2 {[%clk 0:00:20]}  f6 {[%clk 0:00:47]} 44. f3 {[%clk 0:00:19]}  Bd4 {[%clk 0:00:45]} 45. Kd3 {[%clk 0:00:14]}  fxe5 {[%clk 0:00:45]} 46. Ke4 {[%clk 0:00:15]}  Kd6 {[%clk 0:00:37]} 47. f5 {[%clk 0:00:15]}  gxf5+ {[%clk 0:00:13]} 48. Kxf5 {[%clk 0:00:16]}  Kxd5 {[%clk 0:00:14]} 49. Kg5 {[%clk 0:00:16]}  Ke6 {[%clk 0:00:14]} 50. h4 {[%clk 0:00:11]}  Be3+ {[%clk 0:00:12]} 51. Kg6 {[%clk 0:00:09]}  Bd2 {[%clk 0:00:09]} 52. Kxh5 {[%clk 0:00:03]}  Kf5 {[%clk 0:00:09]} 53. f4 {[%clk 0:00:03]}  exf4 {[%clk 0:00:09]} 54. Kh6 {[%clk 0:00:04]}  f3+ {[%clk 0:00:10]} 55. Kg7 {[%clk 0:00:04]}  f2 {[%clk 0:00:11]} 56. h5 {[%clk 0:00:05]}  f1=Q {[%clk 0:00:11]} 57. h6 {[%clk 0:00:06]}  Bc3+ {[%clk 0:00:10]} 58. Kf7 {[%clk 0:00:06]}  Qc4+ {[%clk 0:00:09]} 59. Kf8 {[%clk 0:00:05]}  Kg6 {[%clk 0:00:10]} 60. h7 {[%clk 0:00:05]}  Qf7# {[%clk 0:00:10]} 0-1


[Site "https://www.chess.com"]

[Event "Titled Tuesday Blitz May 30 Early 2023"]
[White "Harriott, Tyrell"]
[Black "Sadovsky, Artem"]
[WhiteFideId "2086484"]
[BlackFideId "4155840"]
[WhiteElo "2107"]
[BlackElo "2314"]
[Result "1-0"]
[Round "11"]
[TimeControl "180+2"]
[Date "2023.05.30"]
[WhiteClock "0:02:34"]
[BlackClock "0:00:00"]

1. d4 {[%clk 0:03:00]}  g6 {[%clk 0:00:13]} 2. e3 {[%clk 0:03:01]}  Bg7 {[%clk 0:00:14]} 3. Bd3 {[%clk 0:02:58]}  d6 {[%clk 0:00:07]} 4. f4 {[%clk 0:02:59]}  e5 {[%clk 0:00:07]} 5. Ne2 {[%clk 0:02:56]}  exd4 {[%clk 0:00:04]} 6. exd4 {[%clk 0:02:56]}  Nf6 {[%clk 0:00:05]} 7. O-O {[%clk 0:02:55]}  O-O {[%clk 0:00:06]} 8. f5 {[%clk 0:02:55]}  Nc6 {[%clk 0:00:06]} 9. c3 {[%clk 0:02:55]}  Re8 {[%clk 0:00:05]} 10. Qe1 {[%clk 0:02:54]}  Qe7 {[%clk 0:00:03]} 11. Qg3 {[%clk 0:02:51]}  Ne4 {[%clk 0:00:03]} 12. Bxe4 {[%clk 0:02:46]}  Qxe4 {[%clk 0:00:03]} 13. fxg6 {[%clk 0:02:46]}  hxg6 {[%clk 0:00:04]} 14. Nf4 {[%clk 0:02:43]}  Bf5 {[%clk 0:00:04]} 15. Na3 {[%clk 0:02:41]}  a6 {[%clk 0:00:02]} 16. Nc4 {[%clk 0:02:40]}  Rad8 {[%clk 0:00:02]} 17. Ne3 {[%clk 0:02:39]}  Qe7 {[%clk 0:00:03]} 18. Nxf5 {[%clk 0:02:38]}  gxf5 {[%clk 0:00:04]} 19. Nh5 {[%clk 0:02:36]}  f6 {[%clk 0:00:00]} 20. Bh6 {[%clk 0:02:34]} 1-0


[Site "https://www.chess.com"]

[Event "Titled Tuesday Blitz May 30 Early 2023"]
[White "Avalos Parra, Joao"]
[Black "Liu, Casper"]
[WhiteFideId "3402541"]
[BlackFideId "1454153"]
[WhiteElo "2173"]
[BlackElo "2221"]
[Result "0-1"]
[Round "11"]
[TimeControl "180+2"]
[Date "2023.05.30"]
[WhiteClock "0:00:00"]
[BlackClock "0:01:03"]

1. d4 {[%clk 0:03:00]}  d5 {[%clk 0:02:59]} 2. c4 {[%clk 0:03:01]}  dxc4 {[%clk 0:03:00]} 3. e4 {[%clk 0:03:00]}  Nd7 {[%clk 0:02:58]} 4. Bxc4 {[%clk 0:02:58]}  e5 {[%clk 0:02:57]} 5. Nf3 {[%clk 0:02:57]}  Bb4+ {[%clk 0:02:56]} 6. Nbd2 {[%clk 0:02:53]}  Ne7 {[%clk 0:02:50]} 7. Bxf7+ {[%clk 0:02:51]}  Kxf7 {[%clk 0:02:49]} 8. Ng5+ {[%clk 0:02:31]}  Kg6 {[%clk 0:02:47]} 9. Ne6 {[%clk 0:02:21]}  Nf6 {[%clk 0:02:41]} 10. Nxd8 {[%clk 0:02:20]}  Rxd8 {[%clk 0:02:42]} 11. O-O {[%clk 0:02:12]}  Rxd4 {[%clk 0:02:42]} 12. Qe2 {[%clk 0:02:07]}  Bg4 {[%clk 0:02:41]} 13. f3 {[%clk 0:02:06]}  Be6 {[%clk 0:02:38]} 14. Re1 {[%clk 0:02:00]}  Rad8 {[%clk 0:02:38]} 15. Nb3 {[%clk 0:01:57]}  R4d7 {[%clk 0:02:29]} 16. Rf1 {[%clk 0:01:49]}  a5 {[%clk 0:02:28]} 17. Be3 {[%clk 0:01:46]}  b6 {[%clk 0:02:22]} 18. Rad1 {[%clk 0:01:45]}  a4 {[%clk 0:02:17]} 19. Nc1 {[%clk 0:01:40]}  Nc6 {[%clk 0:02:13]} 20. a3 {[%clk 0:01:32]}  Bd6 {[%clk 0:02:09]} 21. h4 {[%clk 0:01:18]}  Na5 {[%clk 0:02:02]} 22. Rfe1 {[%clk 0:00:59]}  Nc4 {[%clk 0:01:58]} 23. Nd3 {[%clk 0:00:52]}  Nh5 {[%clk 0:01:51]} 24. Bf2 {[%clk 0:00:48]}  b5 {[%clk 0:01:47]} 25. g4 {[%clk 0:00:48]}  Nf6 {[%clk 0:01:46]} 26. Nc5 {[%clk 0:00:44]}  Bxc5 {[%clk 0:01:42]} 27. Bxc5 {[%clk 0:00:44]}  Rd2 {[%clk 0:01:28]} 28. Rxd2 {[%clk 0:00:37]}  Rxd2 {[%clk 0:01:29]} 29. h5+ {[%clk 0:00:14]}  Kf7 {[%clk 0:01:29]} 30. Qf1 {[%clk 0:00:15]}  Rxb2 {[%clk 0:01:28]} 31. Rd1 {[%clk 0:00:13]}  Nd7 {[%clk 0:01:21]} 32. Bb4 {[%clk 0:00:12]}  c5 {[%clk 0:01:21]} 33. Bc3 {[%clk 0:00:12]}  Rc2 {[%clk 0:01:20]} 34. Qd3 {[%clk 0:00:11]}  Ra2 {[%clk 0:01:14]} 35. Be1 {[%clk 0:00:08]}  Nb2 {[%clk 0:01:12]} 36. Qe2 {[%clk 0:00:06]}  Nxd1 {[%clk 0:01:11]} 37. Qxd1 {[%clk 0:00:07]}  Nb6 {[%clk 0:01:10]} 38. Qd6 {[%clk 0:00:07]}  Nd7 {[%clk 0:01:09]} 39. Bh4 {[%clk 0:00:05]}  Nf6 {[%clk 0:01:01]} 40. h6 {[%clk 0:00:05]}  Ra1+ {[%clk 0:01:00]} 41. Kf2 {[%clk 0:00:05]}  Ra2+ {[%clk 0:01:01]} 42. Kg3 {[%clk 0:00:04]}  Rxa3 {[%clk 0:01:01]} 43. hxg7 {[%clk 0:00:02]}  Nxe4+ {[%clk 0:01:02]} 44. Kh2 {[%clk 0:00:00]}  Nxd6 {[%clk 0:01:03]} 0-1


[Site "https://www.chess.com"]

[Event "Titled Tuesday Blitz May 30 Early 2023"]
[White "Goffredo_Fofi"]
[Black "Sovetbekova, Nurai"]
[BlackFideId "13801910"]
[WhiteElo "2498"]
[BlackElo "1857"]
[Result "0-1"]
[Round "11"]
[TimeControl "180+2"]
[Date "2023.05.30"]
[WhiteClock "0:00:12"]
[BlackClock "0:00:13"]

1. d4 {[%clk 0:03:00]}  Nf6 {[%clk 0:02:59]} 2. Nf3 {[%clk 0:03:00]}  e6 {[%clk 0:02:59]} 3. Bf4 {[%clk 0:03:00]}  d5 {[%clk 0:02:59]} 4. e3 {[%clk 0:03:01]}  c5 {[%clk 0:02:59]} 5. c3 {[%clk 0:03:00]}  Nc6 {[%clk 0:02:59]} 6. Nbd2 {[%clk 0:02:59]}  Nh5 {[%clk 0:02:54]} 7. Bg5 {[%clk 0:02:58]}  Qb6 {[%clk 0:02:54]} 8. Ne5 {[%clk 0:02:44]}  Nf6 {[%clk 0:02:24]} 9. Nxc6 {[%clk 0:02:26]}  bxc6 {[%clk 0:02:23]} 10. Bxf6 {[%clk 0:02:23]}  gxf6 {[%clk 0:02:21]} 11. Rb1 {[%clk 0:02:08]}  cxd4 {[%clk 0:02:15]} 12. exd4 {[%clk 0:01:59]}  c5 {[%clk 0:02:11]} 13. dxc5 {[%clk 0:01:52]}  Bxc5 {[%clk 0:02:10]} 14. Qf3 {[%clk 0:01:53]}  Rg8 {[%clk 0:01:39]} 15. a4 {[%clk 0:01:47]}  Bb7 {[%clk 0:01:25]} 16. Bb5+ {[%clk 0:01:45]}  Ke7 {[%clk 0:01:25]} 17. b4 {[%clk 0:01:35]}  Bd6 {[%clk 0:01:23]} 18. Bf1 {[%clk 0:01:14]}  d4 {[%clk 0:01:20]} 19. Qd3 {[%clk 0:00:51]}  dxc3 {[%clk 0:01:17]} 20. Qxc3 {[%clk 0:00:52]}  Rac8 {[%clk 0:01:11]} 21. Nc4 {[%clk 0:00:40]}  Qc7 {[%clk 0:01:02]} 22. Qe3 {[%clk 0:00:37]}  Bxg2 {[%clk 0:00:53]} 23. Nxd6 {[%clk 0:00:33]}  Qxd6 {[%clk 0:00:52]} 24. Bxg2 {[%clk 0:00:33]}  Rxg2 {[%clk 0:00:50]} 25. Kf1 {[%clk 0:00:30]}  Rg5 {[%clk 0:00:42]} 26. Qxa7+ {[%clk 0:00:26]}  Rc7 {[%clk 0:00:42]} 27. Qe3 {[%clk 0:00:24]}  Re5 {[%clk 0:00:33]} 28. Qf3 {[%clk 0:00:24]}  Qa6+ {[%clk 0:00:24]} 29. Kg2 {[%clk 0:00:20]}  Rg5+ {[%clk 0:00:22]} 30. Kh3 {[%clk 0:00:20]}  e5 {[%clk 0:00:16]} 31. Rhd1 {[%clk 0:00:18]}  Qe6+ {[%clk 0:00:14]} 32. Kh4 {[%clk 0:00:12]}  Rc4+ {[%clk 0:00:13]} 0-1


[Site "https://www.chess.com"]

[Event "Titled Tuesday Blitz May 30 Early 2023"]
[White "rionelG"]
[Black "Janaszak, Dawid"]
[BlackFideId "1119206"]
[WhiteElo "2161"]
[BlackElo "2220"]
[Result "0-1"]
[Round "11"]
[TimeControl "180+2"]
[Date "2023.05.30"]
[WhiteClock "0:00:00"]
[BlackClock "0:00:39"]

1. e4 {[%clk 0:03:00]}  e5 {[%clk 0:02:56]} 2. Nf3 {[%clk 0:03:01]}  Nc6 {[%clk 0:02:51]} 3. d4 {[%clk 0:03:01]}  exd4 {[%clk 0:02:51]} 4. Nxd4 {[%clk 0:03:02]}  Bb4+ {[%clk 0:02:50]} 5. c3 {[%clk 0:03:01]}  Bc5 {[%clk 0:02:51]} 6. Nf5 {[%clk 0:03:00]}  Qf6 {[%clk 0:02:51]} 7. Be3 {[%clk 0:02:58]}  Bxe3 {[%clk 0:02:39]} 8. Nxe3 {[%clk 0:02:58]}  Nge7 {[%clk 0:02:39]} 9. Qd2 {[%clk 0:02:58]}  O-O {[%clk 0:02:38]} 10. c4 {[%clk 0:02:59]}  d6 {[%clk 0:02:37]} 11. Nc3 {[%clk 0:02:59]}  Qg6 {[%clk 0:02:37]} 12. Be2 {[%clk 0:02:56]}  f5 {[%clk 0:02:37]} 13. exf5 {[%clk 0:02:50]}  Nxf5 {[%clk 0:02:38]} 14. Ncd5 {[%clk 0:02:30]}  Nxe3 {[%clk 0:02:32]} 15. Nxe3 {[%clk 0:02:29]}  Be6 {[%clk 0:02:29]} 16. O-O {[%clk 0:02:14]}  Rae8 {[%clk 0:02:29]} 17. Rae1 {[%clk 0:02:09]}  Bh3 {[%clk 0:02:28]} 18. Bd3 {[%clk 0:01:56]}  Qg5 {[%clk 0:02:27]} 19. f4 {[%clk 0:01:49]}  Rxf4 {[%clk 0:02:14]} 20. Rxf4 {[%clk 0:01:48]}  Qxf4 {[%clk 0:02:15]} 21. gxh3 {[%clk 0:01:45]}  Nd4 {[%clk 0:02:15]} 22. Qf2 {[%clk 0:01:17]}  Nf3+ {[%clk 0:02:03]} 23. Kf1 {[%clk 0:00:54]}  g5 {[%clk 0:01:52]} 24. Ng2 {[%clk 0:00:20]}  Nxh2+ {[%clk 0:01:27]} 25. Kg1 {[%clk 0:00:20]}  Nf3+ {[%clk 0:01:08]} 26. Qxf3 {[%clk 0:00:17]}  Qxf3 {[%clk 0:01:06]} 27. Rxe8+ {[%clk 0:00:17]}  Kf7 {[%clk 0:01:01]} 28. Re3 {[%clk 0:00:16]}  Qd1+ {[%clk 0:01:01]} 29. Kf2 {[%clk 0:00:15]}  Qa1 {[%clk 0:00:57]} 30. Re2 {[%clk 0:00:14]}  h6 {[%clk 0:00:54]} 31. Ne3 {[%clk 0:00:14]}  Qxa2 {[%clk 0:00:53]} 32. Be4 {[%clk 0:00:13]}  c6 {[%clk 0:00:51]} 33. b4 {[%clk 0:00:13]}  Qa3 {[%clk 0:00:48]} 34. b5 {[%clk 0:00:13]}  Qc5 {[%clk 0:00:48]} 35. bxc6 {[%clk 0:00:12]}  bxc6 {[%clk 0:00:49]} 36. Rd2 {[%clk 0:00:11]}  a5 {[%clk 0:00:47]} 37. Kf3 {[%clk 0:00:11]}  a4 {[%clk 0:00:47]} 38. Rf2 {[%clk 0:00:07]}  a3 {[%clk 0:00:45]} 39. Kg4+ {[%clk 0:00:07]}  Ke8 {[%clk 0:00:44]} 40. Bg6+ {[%clk 0:00:07]}  Kd8 {[%clk 0:00:44]} 41. Rf8+ {[%clk 0:00:07]}  Kc7 {[%clk 0:00:44]} 42. Nf5 {[%clk 0:00:04]}  Qg1+ {[%clk 0:00:40]} 43. Kh5 {[%clk 0:00:03]}  Qd1+ {[%clk 0:00:38]} 44. Kxh6 {[%clk 0:00:00]}  a2 {[%clk 0:00:39]} 0-1


[Site "https://www.chess.com"]

[Event "Titled Tuesday Blitz May 30 Early 2023"]
[White "Romkachess"]
[Black "Marn, Jan"]
[BlackFideId "14619245"]
[WhiteElo "2541"]
[BlackElo "2242"]
[Result "1-0"]
[Round "11"]
[TimeControl "180+2"]
[Date "2023.05.30"]
[WhiteClock "0:01:00"]
[BlackClock "0:01:18"]

1. e4 {[%clk 0:03:00]}  e5 {[%clk 0:03:00]} 2. d4 {[%clk 0:02:59]}  exd4 {[%clk 0:02:59]} 3. Qxd4 {[%clk 0:02:59]}  Nc6 {[%clk 0:02:59]} 4. Qe3 {[%clk 0:02:56]}  Nf6 {[%clk 0:02:59]} 5. Nc3 {[%clk 0:02:52]}  Be7 {[%clk 0:02:58]} 6. Bd2 {[%clk 0:02:52]}  d5 {[%clk 0:02:57]} 7. exd5 {[%clk 0:02:47]}  Nxd5 {[%clk 0:02:57]} 8. Nxd5 {[%clk 0:02:47]}  Qxd5 {[%clk 0:02:56]} 9. c4 {[%clk 0:02:45]}  Qe6 {[%clk 0:02:39]} 10. O-O-O {[%clk 0:02:42]}  O-O {[%clk 0:02:33]} 11. Qxe6 {[%clk 0:02:23]}  Bxe6 {[%clk 0:02:33]} 12. Nf3 {[%clk 0:02:21]}  Rad8 {[%clk 0:02:25]} 13. Bf4 {[%clk 0:01:57]}  Rxd1+ {[%clk 0:02:01]} 14. Kxd1 {[%clk 0:01:58]}  Rd8+ {[%clk 0:02:01]} 15. Kc1 {[%clk 0:01:56]}  Nb4 {[%clk 0:01:47]} 16. a3 {[%clk 0:01:30]}  Nd3+ {[%clk 0:01:41]} 17. Bxd3 {[%clk 0:01:30]}  Rxd3 {[%clk 0:01:42]} 18. Bxc7 {[%clk 0:01:24]}  Bxc4 {[%clk 0:01:38]} 19. Re1 {[%clk 0:01:23]}  Kf8 {[%clk 0:01:36]} 20. Bb8 {[%clk 0:01:20]}  a6 {[%clk 0:01:33]} 21. Ne5 {[%clk 0:01:20]}  Rd4 {[%clk 0:01:29]} 22. Ba7 {[%clk 0:01:19]}  Bg5+ {[%clk 0:01:22]} 23. Kb1 {[%clk 0:01:00]}  Bd3+ {[%clk 0:01:21]} 24. Nxd3 {[%clk 0:00:59]}  Rxd3 {[%clk 0:01:18]} 25. Bc5+ {[%clk 0:01:00]} 1-0


[Site "https://www.chess.com"]

[Event "Titled Tuesday Blitz May 30 Early 2023"]
[White "Zaitsev, Alexander"]
[Black "surrenderPLS"]
[WhiteFideId "4164490"]
[WhiteElo "2373"]
[BlackElo "2513"]
[Result "0-1"]
[Round "11"]
[TimeControl "180+2"]
[Date "2023.05.30"]
[WhiteClock "0:00:00"]
[BlackClock "0:00:05"]

1. e4 {[%clk 0:03:00]}  c5 {[%clk 0:02:58]} 2. Nf3 {[%clk 0:03:00]}  d6 {[%clk 0:02:58]} 3. d4 {[%clk 0:03:00]}  cxd4 {[%clk 0:02:59]} 4. Qxd4 {[%clk 0:03:01]}  Nf6 {[%clk 0:03:00]} 5. Nc3 {[%clk 0:03:00]}  Nc6 {[%clk 0:03:00]} 6. Bb5 {[%clk 0:03:00]}  Bd7 {[%clk 0:03:00]} 7. Bxc6 {[%clk 0:03:01]}  Bxc6 {[%clk 0:03:01]} 8. Bg5 {[%clk 0:03:01]}  e6 {[%clk 0:03:01]} 9. O-O-O {[%clk 0:03:01]}  Be7 {[%clk 0:03:01]} 10. Rhe1 {[%clk 0:03:02]}  Qa5 {[%clk 0:02:58]} 11. Kb1 {[%clk 0:03:02]}  h6 {[%clk 0:02:56]} 12. Bh4 {[%clk 0:02:55]}  g5 {[%clk 0:02:53]} 13. Bg3 {[%clk 0:02:54]}  e5 {[%clk 0:02:53]} 14. Qd3 {[%clk 0:02:53]}  Rc8 {[%clk 0:02:49]} 15. Nd2 {[%clk 0:02:44]}  b5 {[%clk 0:02:43]} 16. Nb3 {[%clk 0:02:03]}  Qb6 {[%clk 0:02:42]} 17. Qe2 {[%clk 0:01:46]}  b4 {[%clk 0:02:31]} 18. Nd5 {[%clk 0:01:47]}  Nxd5 {[%clk 0:02:16]} 19. exd5 {[%clk 0:01:46]}  Bb5 {[%clk 0:02:17]} 20. Qf3 {[%clk 0:01:33]}  Qc7 {[%clk 0:01:27]} 21. Rd2 {[%clk 0:01:33]}  O-O {[%clk 0:01:20]} 22. h4 {[%clk 0:01:12]}  f5 {[%clk 0:01:11]} 23. Bxe5 {[%clk 0:00:54]}  dxe5 {[%clk 0:01:06]} 24. d6 {[%clk 0:00:55]}  Bxd6 {[%clk 0:00:55]} 25. Qd5+ {[%clk 0:00:55]}  Kg7 {[%clk 0:00:42]} 26. Qxb5 {[%clk 0:00:51]}  Rfd8 {[%clk 0:00:37]} 27. hxg5 {[%clk 0:00:51]}  hxg5 {[%clk 0:00:37]} 28. g4 {[%clk 0:00:51]}  fxg4 {[%clk 0:00:20]} 29. Qe2 {[%clk 0:00:51]}  Qc4 {[%clk 0:00:18]} 30. Qe3 {[%clk 0:00:51]}  Qf4 {[%clk 0:00:12]} 31. Qxa7+ {[%clk 0:00:51]}  Rc7 {[%clk 0:00:12]} 32. Qb6 {[%clk 0:00:50]}  Rcd7 {[%clk 0:00:11]} 33. Red1 {[%clk 0:00:49]}  Qf6 {[%clk 0:00:07]} 34. Nc5 {[%clk 0:00:44]}  Bxc5 {[%clk 0:00:04]} 35. Rxd7+ {[%clk 0:00:44]}  Rxd7 {[%clk 0:00:05]} 36. Rxd7+ {[%clk 0:00:44]}  Be7 {[%clk 0:00:05]} 37. Qxb4 {[%clk 0:00:40]}  Kf7 {[%clk 0:00:05]} 38. Qc4+ {[%clk 0:00:35]}  Qe6 {[%clk 0:00:05]} 39. Qd3 {[%clk 0:00:32]}  e4 {[%clk 0:00:05]} 40. Qd2 {[%clk 0:00:31]}  e3 {[%clk 0:00:04]} 41. fxe3 {[%clk 0:00:29]}  g3 {[%clk 0:00:05]} 42. Rd4 {[%clk 0:00:24]}  Qf6 {[%clk 0:00:03]} 43. Qg2 {[%clk 0:00:12]}  Qf2 {[%clk 0:00:03]} 44. Qxf2+ {[%clk 0:00:10]}  gxf2 {[%clk 0:00:04]} 45. Rd1 {[%clk 0:00:10]}  g4 {[%clk 0:00:04]} 46. Rf1 {[%clk 0:00:08]}  g3 {[%clk 0:00:05]} 47. Kc1 {[%clk 0:00:08]}  Bh4 {[%clk 0:00:05]} 48. Kd1 {[%clk 0:00:07]}  g2 {[%clk 0:00:05]} 49. Ke2 {[%clk 0:00:00]}  g1=Q {[%clk 0:00:05]} 0-1


[Site "https://www.chess.com"]

[Event "Titled Tuesday Blitz May 30 Early 2023"]
[White "Jovic, Stanoje"]
[Black "Ginzburg, Yakov"]
[WhiteFideId "905020"]
[BlackFideId "4157176"]
[WhiteElo "2236"]
[BlackElo "2305"]
[Result "1-0"]
[Round "11"]
[TimeControl "180+2"]
[Date "2023.05.30"]
[WhiteClock "0:02:27"]
[BlackClock "0:01:59"]

1. c4 {[%clk 0:03:00]}  c6 {[%clk 0:02:30]} 2. e4 {[%clk 0:03:00]}  d5 {[%clk 0:02:30]} 3. exd5 {[%clk 0:03:00]}  cxd5 {[%clk 0:02:31]} 4. cxd5 {[%clk 0:03:01]}  Nf6 {[%clk 0:02:31]} 5. Qa4+ {[%clk 0:03:01]}  Bd7 {[%clk 0:02:29]} 6. Qb3 {[%clk 0:03:01]}  Bc8 {[%clk 0:02:29]} 7. Nc3 {[%clk 0:03:00]}  Nbd7 {[%clk 0:02:28]} 8. Nf3 {[%clk 0:02:56]}  Nb6 {[%clk 0:02:28]} 9. a4 {[%clk 0:02:53]}  Nbxd5 {[%clk 0:02:27]} 10. Bb5+ {[%clk 0:02:50]}  Bd7 {[%clk 0:02:27]} 11. Nxd5 {[%clk 0:02:50]}  Nxd5 {[%clk 0:02:26]} 12. Qxd5 {[%clk 0:02:49]}  a6 {[%clk 0:02:22]} 13. Ne5 {[%clk 0:02:42]}  e6 {[%clk 0:02:16]} 14. Bxd7+ {[%clk 0:02:40]}  Ke7 {[%clk 0:02:17]} 15. Qxb7 {[%clk 0:02:36]}  Kf6 {[%clk 0:01:59]} 16. Nc6 {[%clk 0:02:27]} 1-0


[Site "https://www.chess.com"]

[Event "Titled Tuesday Blitz May 30 Early 2023"]
[White "Lehtosaari, Mauri"]
[Black "Srdanovic, Jovana"]
[WhiteFideId "501999"]
[BlackFideId "954810"]
[WhiteElo "2512"]
[BlackElo "2169"]
[Result "1-0"]
[Round "11"]
[TimeControl "180+2"]
[Date "2023.05.30"]
[WhiteClock "0:00:08"]
[BlackClock "0:00:04"]

1. d4 {[%clk 0:03:00]}  a6 {[%clk 0:02:57]} 2. c3 {[%clk 0:02:50]}  h6 {[%clk 0:02:56]} 3. a4 {[%clk 0:02:47]}  d5 {[%clk 0:02:54]} 4. Nf3 {[%clk 0:02:46]}  Nf6 {[%clk 0:02:54]} 5. Bf4 {[%clk 0:02:34]}  c6 {[%clk 0:02:52]} 6. e3 {[%clk 0:02:33]}  Bg4 {[%clk 0:02:51]} 7. Nbd2 {[%clk 0:02:33]}  Nbd7 {[%clk 0:02:47]} 8. h3 {[%clk 0:02:31]}  Bh5 {[%clk 0:02:40]} 9. a5 {[%clk 0:02:31]}  Ne4 {[%clk 0:02:35]} 10. Be2 {[%clk 0:02:31]}  Nxd2 {[%clk 0:02:33]} 11. Qxd2 {[%clk 0:02:28]}  Bxf3 {[%clk 0:02:28]} 12. Bxf3 {[%clk 0:02:28]}  e6 {[%clk 0:02:28]} 13. Qc2 {[%clk 0:02:22]}  Be7 {[%clk 0:02:19]} 14. Qb3 {[%clk 0:02:20]}  Qc8 {[%clk 0:02:16]} 15. O-O {[%clk 0:02:16]}  O-O {[%clk 0:02:12]} 16. Rac1 {[%clk 0:02:12]}  c5 {[%clk 0:02:11]} 17. c4 {[%clk 0:02:07]}  Nf6 {[%clk 0:01:48]} 18. Be5 {[%clk 0:02:02]}  cxd4 {[%clk 0:01:37]} 19. cxd5 {[%clk 0:01:56]}  Qd7 {[%clk 0:01:31]} 20. Rc7 {[%clk 0:01:52]}  Qd8 {[%clk 0:01:23]} 21. dxe6 {[%clk 0:01:43]}  dxe3 {[%clk 0:01:19]} 22. fxe3 {[%clk 0:01:34]}  Bd6 {[%clk 0:01:03]} 23. exf7+ {[%clk 0:01:14]}  Kh8 {[%clk 0:01:03]} 24. Bxd6 {[%clk 0:01:04]}  Qxd6 {[%clk 0:01:04]} 25. Rxb7 {[%clk 0:01:03]}  Qc5 {[%clk 0:01:00]} 26. Qb6 {[%clk 0:00:59]}  Qg5 {[%clk 0:00:52]} 27. b4 {[%clk 0:00:52]}  Rad8 {[%clk 0:00:50]} 28. Qc5 {[%clk 0:00:43]}  Qg6 {[%clk 0:00:50]} 29. Qe7 {[%clk 0:00:24]}  Qg5 {[%clk 0:00:32]} 30. e4 {[%clk 0:00:21]}  Qe3+ {[%clk 0:00:31]} 31. Kh1 {[%clk 0:00:21]}  Qc3 {[%clk 0:00:16]} 32. e5 {[%clk 0:00:19]}  Qd3 {[%clk 0:00:11]} 33. Rg1 {[%clk 0:00:18]}  Ne4 {[%clk 0:00:11]} 34. Bxe4 {[%clk 0:00:18]}  Qxe4 {[%clk 0:00:11]} 35. e6 {[%clk 0:00:16]}  Qf5 {[%clk 0:00:09]} 36. Rb6 {[%clk 0:00:14]}  Kh7 {[%clk 0:00:08]} 37. Qc5 {[%clk 0:00:13]}  Qg6 {[%clk 0:00:07]} 38. e7 {[%clk 0:00:12]}  Rd3 {[%clk 0:00:06]} 39. exf8=Q {[%clk 0:00:10]}  Qe6 {[%clk 0:00:05]} 40. Qg8+ {[%clk 0:00:10]}  Kg6 {[%clk 0:00:06]} 41. Qf2 {[%clk 0:00:09]}  Rd5 {[%clk 0:00:04]} 42. Qf3 {[%clk 0:00:09]}  Rg5 {[%clk 0:00:05]} 43. Kh2 {[%clk 0:00:08]}  Qd6+ {[%clk 0:00:04]} 44. Rxd6# {[%clk 0:00:08]} 1-0


[Site "https://www.chess.com"]